fUST/lending_fUST_20250925
["ID","MTS","AMOUNT","RATE_DAILY","PERIOD"]
[387650778,1758798638320,-508.82899998,0.00019349,2]
[387650780,1758798638330,-480.0,0.0001935,2]
[387650782,1758798638339,-480.0,0.0001935,2]
[387650784,1758798638348,-482.65890024,0.0001935,2]
[387650786,1758798638357,-489.00543559,0.0001935,2]
[387650787,1758798638367,-480.0,0.0001935,2]
[387650788,1758798638376,-480.0,0.0001935,2]
[387650789,1758798638385,-480.0,0.0001935,2]
[387650790,1758798638395,-155.81474067,0.0001935,2]
[387650791,1758798638404,-152.22216253,0.0001935,2]
[387650792,1758798638413,-151.0,0.0001935,2]
[387650793,1758798638422,-151.0,0.0001935,2]
[387650794,1758798638432,-151.0,0.0001935,2]
[387650795,1758798638441,-151.0,0.0001935,2]
[387650796,1758798638451,-151.0,0.0001935,2]
[387650797,1758798638460,-151.0,0.0001935,2]
[387650798,1758798638469,-480.0,0.0001935,2]
[387650799,1758798638479,-151.0,0.0001935,2]
[387650800,1758798638489,-480.0,0.0001935,2]
[387650801,1758798638498,-480.0,0.0001935,2]
[387650802,1758798638507,-500.0,0.0001935,2]
[387650803,1758798638517,-500.0,0.0001935,2]
[387650804,1758798638527,-480.0,0.0001935,2]
[387650805,1758798638536,-480.0,0.0001935,2]
[387650806,1758798638545,-480.0,0.0001935,2]
[387650807,1758798638555,-480.0,0.0001935,2]
[387650808,1758798638564,-480.0,0.0001935,2]
[387650809,1758798638574,-151.0,0.0001935,2]
[387650810,1758798638583,-246.33756732,0.0001935,2]
[387650811,1758798638592,-151.0,0.0001935,2]
[387650812,1758798638602,-151.0,0.0001935,2]
[387650813,1758798638615,-480.0,0.0001935,2]
[387650814,1758798638624,-480.0,0.0001935,2]
[387650815,1758798638634,-480.0,0.0001935,2]
[387650817,1758798638643,-2874.04,0.0001935,2]
[387650819,1758798638654,-484.72745538,0.0001935,2]
[387650821,1758798638663,-480.0,0.0001935,2]
[387650823,1758798638672,-480.0,0.0001935,2]
[387650825,1758798638682,-480.0,0.0001935,2]
[387650827,1758798638692,-480.0,0.0001935,2]
[387650829,1758798638701,-480.0,0.0001935,2]
[387650831,1758798638711,-480.0,0.0001935,2]
[387650833,1758798638719,-480.0,0.0001935,2]
[387650835,1758798638728,-151.0,0.0001935,2]
[387650837,1758798638738,-480.0,0.0001935,2]
[387650839,1758798638747,-480.0,0.0001935,2]
[387650841,1758798638758,-480.0,0.0001935,2]
[387650843,1758798638767,-480.0,0.0001935,2]
[387650845,1758798638776,-480.0,0.0001935,2]
[387650847,1758798638786,-480.0,0.0001935,2]
[387650849,1758798638795,-480.0,0.0001935,2]
[387650851,1758798638806,-480.0,0.0001935,2]
[387650853,1758798638815,-480.0,0.0001935,2]
[387650855,1758798638824,-480.0,0.0001935,2]
[387650857,1758798638834,-1101.9,0.0001935,2]
[387650859,1758798638844,-500.0,0.0001935,2]
[387650861,1758798638854,-500.0,0.0001935,2]
[387650863,1758798638863,-374.57659042,0.0001935,2]
[387650864,1758798638873,-480.0,0.0001935,2]
[387650865,1758798638883,-480.0,0.0001935,2]
[387650866,1758798638892,-480.0,0.0001935,2]
[387650867,1758798638901,-480.0,0.0001935,2]
[387650868,1758798638910,-481.24462171,0.00019351,2]
[387650869,1758798638919,-480.0,0.00019351,2]
[387650870,1758798638929,-435.14850304,0.00019351,2]
[387650871,1758798638938,-480.0,0.00019351,2]
[387650872,1758798638947,-200.0,0.00019351,2]
[387650873,1758798638956,-480.0,0.00019351,2]
[387650874,1758798638965,-480.0,0.00019351,2]
[387650875,1758798638975,-468.93907949,0.00019351,2]
[387650876,1758798638984,-517.130634,0.00019351,2]
[387650877,1758798638996,-480.0,0.00019351,2]
[387650878,1758798639009,-480.0,0.00019351,2]
[387650879,1758798639023,-452.75119257,0.00019351,2]
[387650880,1758798639035,-480.0,0.00019351,2]
[387650881,1758798639046,-542.14916809,0.00019351,2]
[387650882,1758798639058,-480.0,0.00019351,2]
[387650883,1758798639070,-480.0,0.00019351,2]
[387650884,1758798639082,-480.0,0.00019351,2]
[387650885,1758798639095,-480.0,0.00019351,2]
[387650886,1758798639108,-485.07089591,0.00019351,2]
[387650887,1758798639120,-480.0,0.00019351,2]
[387650888,1758798639132,-480.0,0.00019351,2]
[387650889,1758798639145,-484.40681743,0.00019351,2]
[387650890,1758798639159,-480.0,0.00019351,2]
[387650891,1758798639171,-482.54017658,0.00019351,2]
[387650892,1758798639183,-480.0,0.00019351,2]
[387650893,1758798639195,-484.37245727,0.00019351,2]
[387650894,1758798639207,-480.0,0.00019351,2]
[387650895,1758798639219,-480.0,0.00019351,2]
[387650896,1758798639232,-493.87712848,0.00019351,2]
[387650897,1758798639244,-480.0,0.00019351,2]
[387650898,1758798639257,-484.69969827,0.00019351,2]
[387650899,1758798639267,-484.73907712,0.00019351,2]
[387650900,1758798639278,-480.0,0.00019351,2]
[387650901,1758798639289,-998.22140236,0.00019351,2]
[387650902,1758798639303,-482.60587553,0.00019351,2]
[387650903,1758798639316,-480.0,0.00019351,2]
[387650904,1758798639328,-480.0,0.00019351,2]
[387650905,1758798639341,-480.0,0.00019351,2]
[387650906,1758798639355,-403.48553316,0.00019351,2]
[387650907,1758798639367,-496.80224384,0.00019351,2]
[387650908,1758798639380,-480.0,0.00019351,2]
[387650911,1758798639393,-485.27066079,0.00019351,2]
[387650913,1758798639405,-480.0,0.00019351,2]
[387650915,1758798639415,-480.0,0.00019351,2]
[387650917,1758798639426,-482.47018687,0.00019351,2]
[387650920,1758798639437,-480.0,0.00019351,2]
[387650922,1758798639450,-480.0,0.00019351,2]
[387650924,1758798639462,-485.92541287,0.00019351,2]
[387650927,1758798639476,-487.77480633,0.00019351,2]
[387650929,1758798639487,-495.01321192,0.00019351,2]
[387650931,1758798639498,-480.0,0.00019351,2]
[387650933,1758798639510,-480.0,0.00019351,2]
[387650935,1758798639521,-512.39797834,0.00019351,2]
[387650938,1758798639534,-480.0,0.00019351,2]
[387650940,1758798639545,-480.0,0.00019351,2]
[387650942,1758798639555,-500.0,0.00019351,2]
[387650945,1758798639566,-480.0,0.00019351,2]
[387650948,1758798639577,-480.0,0.00019351,2]
[387650950,1758798639588,-480.0,0.00019351,2]
[387650952,1758798639599,-480.0,0.00019351,2]
[387650954,1758798639614,-386.5074979,0.00019351,2]
[387650956,1758798639625,-480.0,0.00019351,2]
[387650960,1758798639636,-524.78783202,0.00019351,2]
[387650962,1758798639647,-480.0,0.00019351,2]
[387650965,1758798639660,-480.0,0.00019351,2]
[387650968,1758798639671,-480.0,0.00019351,2]
[387650972,1758798639683,-480.0,0.00019351,2]
[387650975,1758798639695,-480.0,0.00019351,2]
[387650977,1758798639706,-672.35,0.00019351,2]
[387650979,1758798639718,-480.0,0.00019351,2]
[387650981,1758798639729,-480.0,0.00019351,2]
[387650985,1758798639740,-490.14471729,0.00019351,2]
[387650987,1758798639750,-480.0,0.00019351,2]
[387650989,1758798639762,-480.0,0.00019351,2]
[387650991,1758798639774,-480.0,0.00019351,2]
[387650993,1758798639785,-480.0,0.00019351,2]
[387650996,1758798639796,-274.36901406,0.00019351,2]
[387650998,1758798639808,-480.0,0.00019351,2]
[387651000,1758798639819,-582.11728596,0.00019351,2]
[387651002,1758798639830,-480.0,0.00019351,2]
[387651004,1758798639841,-480.0,0.00019351,2]
[387651007,1758798639852,-492.12056491,0.00019351,2]
[387651009,1758798639863,-480.0,0.00019351,2]
[387651011,1758798639874,-480.0,0.00019351,2]
[387651013,1758798639885,-480.0,0.00019351,2]
[387651015,1758798639896,-480.0,0.00019351,2]
[387651018,1758798639908,-480.0,0.00019351,2]
[387651020,1758798639919,-477.15793585,0.00019351,2]
[387651022,1758798639930,-480.0,0.00019351,2]
[387651024,1758798639941,-319.99861038,0.00019351,2]
[387651026,1758798639952,-480.0,0.00019351,2]
[387651029,1758798639963,-480.0,0.00019351,2]
[387651031,1758798639976,-480.0,0.00019351,2]
[387651033,1758798639987,-480.0,0.00019351,2]
[387651035,1758798639998,-249.31148458,0.00019351,2]
[387651037,1758798640008,-252.3971773,0.00019351,2]
[387651039,1758798640018,-482.65708282,0.00019351,2]
[387651041,1758798640028,-480.0,0.00019351,2]
[387651043,1758798640038,-484.95030407,0.00019351,2]
[387651058,1758798640162,-482.04314207,0.00019351,2]
[387651060,1758798640173,-480.0,0.00019351,2]
[387651062,1758798640183,-401.79874406,0.00019351,2]
[387651064,1758798640192,-480.0,0.00019351,2]
[387651066,1758798640202,-500.0,0.00019351,2]
[387651068,1758798640212,-500.0,0.00019351,2]
[387651070,1758798640221,-500.0,0.00019351,2]
[387651072,1758798640231,-500.0,0.00019351,2]
[387651074,1758798640240,-500.0,0.00019351,2]
[387651076,1758798640249,-500.0,0.00019351,2]
[387651078,1758798640259,-452.39991463,0.00019351,2]
[387651080,1758798640268,-487.69432848,0.00019351,2]
[387651082,1758798640277,-404.80120043,0.00019351,2]
[387651084,1758798640287,-480.0,0.00019351,2]
[387651086,1758798640295,-1000.0,0.00019351,2]
[387651088,1758798640305,-1000.0,0.00019351,2]
[387651090,1758798640314,-1000.0,0.00019351,2]
[387651092,1758798640324,-1000.0,0.00019351,2]
[387651094,1758798640333,-1000.0,0.00019351,2]
[387651096,1758798640342,-1000.0,0.00019351,2]
[387651098,1758798640351,-1000.0,0.00019351,2]
[387651100,1758798640360,-1000.0,0.00019351,2]
[387651102,1758798640370,-1000.0,0.00019351,2]
[387651104,1758798640379,-1000.0,0.00019351,2]
[387651106,1758798640389,-1000.0,0.00019351,2]
[387651108,1758798640398,-1000.0,0.00019351,2]
[387651112,1758798640407,-480.0,0.00019351,2]
[387651114,1758798640417,-480.0,0.00019351,2]
[387651116,1758798640426,-480.0,0.00019351,2]
[387651118,1758798640435,-480.0,0.00019351,2]
[387651120,1758798640445,-480.0,0.00019351,2]
[387651122,1758798640454,-370000.0,0.00019352,2]
[387651124,1758798640463,-434.54488845,0.000194,2]
[387651126,1758798640473,-274.61048347,0.00019622,2]
[387651128,1758798640482,-480.0,0.00019622,2]
[387651130,1758798640493,-480.0,0.00019622,2]
[387651132,1758798640502,-480.0,0.00019622,2]
[387651134,1758798640512,-480.0,0.00019622,2]
[387651136,1758798640521,-480.0,0.00019622,2]
[387651138,1758798640530,-480.0,0.00019622,2]
[387651140,1758798640539,-480.0,0.00019622,2]
[387651142,1758798640548,-480.0,0.00019622,2]
[387651144,1758798640558,-480.0,0.00019622,2]
[387651146,1758798640567,-480.0,0.00019622,2]
[387651148,1758798640577,-480.0,0.00019622,2]
[387651150,1758798640587,-188.63855572,0.00019622,2]
[387651152,1758798640596,-480.0,0.00019622,2]
[387651154,1758798640607,-480.0,0.00019622,2]
[387651156,1758798640620,-369.09189341,0.00019622,2]
[387651158,1758798640630,-480.0,0.00019622,2]
[387651160,1758798640639,-480.0,0.00019622,2]
[387651162,1758798640650,-480.0,0.00019622,2]
[387651164,1758798640660,-480.0,0.00019622,2]
[387651167,1758798640670,-332.25161325,0.00019622,2]
[387651169,1758798640680,-480.0,0.00019622,2]
[387651171,1758798640690,-471.9198103,0.00019622,2]
[387651173,1758798640700,-480.0,0.00019622,2]
[387651175,1758798640709,-480.0,0.00019622,2]
[387651177,1758798640719,-480.0,0.00019622,2]
[387651179,1758798640728,-480.0,0.00019622,2]
[387651181,1758798640738,-480.0,0.00019622,2]
[387651183,1758798640747,-480.0,0.00019622,2]
[387651185,1758798640757,-430.02054,0.00019622,2]
[387651187,1758798640766,-480.0,0.00019622,2]
[387651189,1758798640776,-611.52335537,0.00019622,2]
[387651191,1758798640786,-503.12958683,0.00019622,2]
[387651193,1758798640795,-480.0,0.00019622,2]
[387651195,1758798640805,-480.0,0.00019622,2]
[387651197,1758798640815,-480.0,0.00019622,2]
[387651199,1758798640824,-480.0,0.00019622,2]
[387651201,1758798640834,-480.0,0.00019622,2]
[387651203,1758798640843,-480.0,0.00019622,2]
[387651205,1758798640852,-480.0,0.00019622,2]
[387651207,1758798640861,-480.0,0.00019622,2]
[387651209,1758798640870,-480.0,0.00019622,2]
[387651211,1758798640879,-480.0,0.00019622,2]
[387651213,1758798640888,-480.0,0.00019622,2]
[387651215,1758798640897,-480.0,0.00019622,2]
[387651217,1758798640907,-480.0,0.00019622,2]
[387651219,1758798640916,-151.0,0.00019623,2]
[387651221,1758798640925,-151.0,0.00019623,2]
[387651223,1758798640935,-151.0,0.00019623,2]
[387651225,1758798640944,-151.0,0.00019623,2]
[387651227,1758798640953,-151.0,0.00019623,2]
[387651228,1758798640961,-563.78683149,0.00019623,2]
[387651229,1758798640970,-463.80579506,0.00019623,2]
[387651230,1758798640979,-339.54014747,0.00019623,2]
[387651231,1758798640988,-488.03606376,0.00019623,2]
[387651232,1758798640997,-480.0,0.00019623,2]
[387651233,1758798641006,-480.0,0.00019623,2]
[387651234,1758798641015,-480.0,0.00019623,2]
[387651235,1758798641024,-520.1769416,0.00019623,2]
[387651236,1758798641032,-480.0,0.00019623,2]
[387651237,1758798641044,-1004.22763549,0.00019623,2]
[387651238,1758798641053,-480.0,0.00019623,2]
[387651239,1758798641062,-335.50944149,0.00019623,2]
[387651240,1758798641071,-151.0,0.00019624,2]
[387651241,1758798641079,-151.0,0.00019624,2]
[387651242,1758798641088,-151.0,0.00019624,2]
[387651243,1758798641097,-151.0,0.00019624,2]
[387651244,1758798641105,-151.59310519,0.00019624,2]
[387651245,1758798641114,-151.93961096,0.00019624,2]
[387651246,1758798641123,-246.90162727,0.00019624,2]
[387651247,1758798641132,-247.14406961,0.00019624,2]
[387651248,1758798641142,-151.0,0.00019624,2]
[387651249,1758798641150,-506.85245003,0.00019624,2]
[387651250,1758798641159,-491.6859979,0.00019624,2]
[387651251,1758798641168,-211.42827909,0.00019624,2]
[387651252,1758798641177,-480.0,0.00019624,2]
[387651253,1758798641186,-480.0,0.00019624,2]
[387651254,1758798641195,-480.0,0.00019624,2]
[387651256,1758798641204,-480.0,0.00019624,2]
[387651258,1758798641213,-480.0,0.00019624,2]
[387651260,1758798641223,-480.0,0.00019624,2]
[387651262,1758798641232,-480.0,0.00019624,2]
[387651265,1758798641242,-480.0,0.00019624,2]
[387651267,1758798641252,-480.0,0.00019624,2]
[387651268,1758798641261,-2874.04,0.00019624,2]
[387651270,1758798641270,-480.0,0.00019624,2]
[387651272,1758798641280,-480.0,0.00019624,2]
[387651275,1758798641289,-480.0,0.00019624,2]
[387651277,1758798641299,-480.0,0.00019624,2]
[387651279,1758798641311,-480.0,0.00019624,2]
[387651281,1758798641321,-1101.9,0.00019624,2]
[387651283,1758798641331,-480.0,0.00019624,2]
[387651285,1758798641343,-406.27279815,0.00019625,2]
[387651287,1758798641353,-486.28088052,0.00019625,2]
[387651289,1758798641363,-574.11963063,0.00019625,2]
[387651291,1758798641372,-480.0,0.00019625,2]
[387651293,1758798641381,-480.0,0.00019625,2]
[387651295,1758798641391,-480.0,0.00019625,2]
[387651297,1758798641400,-425.26702985,0.00019625,2]
[387651299,1758798641409,-480.0,0.00019625,2]
[387651301,1758798641419,-480.0,0.00019625,2]
[387651303,1758798641428,-627.78584222,0.00019625,2]
[387651305,1758798641438,-471.77933249,0.00019625,2]
[387651307,1758798641448,-480.0,0.00019625,2]
[387651309,1758798641457,-510.02642384,0.00019625,2]
[387651311,1758798641467,-480.0,0.00019625,2]
[387651313,1758798641476,-271.88082204,0.00019625,2]
[387651315,1758798641485,-198.81128936,0.00019625,2]
[387651317,1758798641494,-474.92346152,0.00019625,2]
[387651319,1758798641504,-480.0,0.00019625,2]
[387651321,1758798641513,-458.54071435,0.00019625,2]
[387651323,1758798641523,-672.35,0.00019625,2]
[387651325,1758798641532,-480.0,0.00019625,2]
[387651327,1758798641542,-489.65704816,0.00019625,2]
[387651329,1758798641551,-480.0,0.00019625,2]
[387651331,1758798641560,-480.0,0.00019625,2]
[387651333,1758798641569,-480.0,0.00019625,2]
[387651335,1758798641579,-480.0,0.00019625,2]
[387651337,1758798641588,-480.0,0.00019625,2]
[387651339,1758798641597,-397.26195834,0.00019625,2]
[387651341,1758798641607,-293.66467597,0.00019625,2]
[387651343,1758798641620,-480.0,0.00019625,2]
[387651345,1758798641629,-480.0,0.00019625,2]
[387651347,1758798641638,-460.00586468,0.00019625,2]
[387651349,1758798641647,-480.0,0.00019625,2]
[387651351,1758798641657,-480.0,0.00019625,2]
[387651353,1758798641666,-480.0,0.00019896,2]
[387651355,1758798641676,-480.0,0.00019896,2]
[387651357,1758798641685,-480.0,0.00019896,2]
[387651359,1758798641696,-480.0,0.00019896,2]
[387651361,1758798641705,-482.09188967,0.00019896,2]
[387651363,1758798641715,-592.57592743,0.00019896,2]
[387651365,1758798641724,-480.0,0.00019896,2]
[387651367,1758798641733,-449.72,0.00019896,2]
[387651369,1758798641742,-444.2903494,0.00019896,2]
[387651371,1758798641753,-480.0,0.00019896,2]
[387651373,1758798641763,-480.0,0.00019896,2]
[387651375,1758798641772,-480.0,0.00019896,2]
[387651377,1758798641782,-480.0,0.00019896,2]
[387651379,1758798641791,-262.26204166,0.00019896,2]
[387651381,1758798641801,-438.28438396,0.00019896,2]
[387651383,1758798641810,-480.0,0.00019896,2]
[387651385,1758798641820,-480.0,0.00019896,2]
[387651387,1758798641829,-480.0,0.00019896,2]
[387651389,1758798641839,-480.0,0.00019896,2]
[387651391,1758798641848,-151.0,0.00019897,2]
[387651393,1758798641858,-151.0,0.00019897,2]
[387651395,1758798641867,-539.02896921,0.00019897,2]
[387651397,1758798641876,-332.62793822,0.00019897,2]
[387651399,1758798641886,-480.0,0.00019897,2]
[387651401,1758798641895,-151.0,0.00019898,2]
[387651403,1758798641905,-151.0,0.00019898,2]
[387651405,1758798641914,-417.8035782,0.00019898,2]
[387651407,1758798641924,-480.0,0.00019898,2]
[387651409,1758798641933,-480.0,0.00019898,2]
[387651411,1758798641943,-2874.04,0.00019898,2]
[387651413,1758798641954,-480.0,0.00019898,2]
[387651415,1758798641963,-1101.9,0.00019898,2]
[387651417,1758798641973,-480.0,0.00019898,2]
[387651419,1758798641982,-672.35,0.00019899,2]
[387651421,1758798641991,-480.0,0.00019899,2]
[387651423,1758798642000,-480.0,0.00019899,2]
[387651425,1758798642010,-480.0,0.00019899,2]
[387651427,1758798642019,-482.53058973,0.00019899,2]
[387651429,1758798642029,-480.0,0.00019899,2]
[387651431,1758798642039,-480.0,0.00019899,2]
[387651433,1758798642049,-480.0,0.00019899,2]
[387651435,1758798642058,-480.0,0.00019899,2]
[387651437,1758798642068,-772.82291146,0.000199,2]
[387651439,1758798642078,-500.0,0.00019973,2]
[387651441,1758798642087,-500.0,0.00019973,2]
[387651443,1758798642097,-583.99999999,0.00019973,2]
[387651445,1758798642106,-500.0,0.00019973,2]
[387651447,1758798642115,-500.0,0.00019973,2]
[387651449,1758798642125,-100000.0,0.0001999,2]
[387651451,1758798642134,-492.01,0.00020072,2]
[387651453,1758798642143,-480.0,0.0002017,2]
[387651455,1758798642152,-480.0,0.0002017,2]
[387651457,1758798642162,-184.45293501,0.0002017,2]
[387651459,1758798642171,-480.0,0.0002017,2]
[387651461,1758798642181,-480.0,0.0002017,2]
[387651463,1758798642191,-480.0,0.0002017,2]
[387651465,1758798642200,-308.71138659,0.0002017,2]
[387651467,1758798642209,-480.0,0.0002017,2]
[387651469,1758798642218,-198.0,0.00020171,2]
[387651471,1758798642228,-151.0,0.00020171,2]
[387651473,1758798642238,-198.0,0.00020172,2]
[387651475,1758798642247,-151.0,0.00020172,2]
[387651477,1758798642258,-160.07,0.00020172,2]
[387651479,1758798642267,-480.0,0.00020172,2]
[387651481,1758798642277,-2874.04,0.00020172,2]
[387651483,1758798642286,-472.12,0.00020172,2]
[387651485,1758798642296,-1101.9,0.00020172,2]
[387651487,1758798642305,-480.0,0.00020172,2]
[387651489,1758798642314,-672.35,0.00020173,2]
[387651491,1758798642324,-480.0,0.00020173,2]
[387651493,1758798642333,-491.20635136,0.00020173,2]
[387651495,1758798642343,-480.0,0.00020173,2]
[387651497,1758798642352,-480.0,0.00020173,2]
[387651499,1758798642361,-480.0,0.00020173,2]
[387651501,1758798642371,-480.0,0.00020173,2]
[387651503,1758798642381,-480.0,0.00020444,2]
[387651505,1758798642391,-584.88,0.00020444,2]
[387651507,1758798642400,-480.0,0.00020444,2]
[387651509,1758798642410,-480.0,0.00020444,2]
[387651511,1758798642419,-480.0,0.00020444,2]
[387651513,1758798642429,-151.0,0.00020445,2]
[387651523,1758798642518,-352.53528934,0.00020445,2]
[387651525,1758798642528,-151.0,0.00020446,2]
[387651527,1758798642538,-480.0,0.00020446,2]
[387651529,1758798642547,-2874.04,0.00020446,2]
[387651531,1758798642556,-1101.9,0.00020446,2]
[387651534,1758798642565,-480.0,0.00020446,2]
[387651536,1758798642575,-672.35,0.00020447,2]
[387651538,1758798642584,-480.0,0.00020447,2]
[387651540,1758798642594,-480.0,0.00020447,2]
[387651542,1758798642603,-480.0,0.00020447,2]
[387651544,1758798642617,-590.74062657,0.0002048,2]
[387651546,1758798642627,-500.0,0.00020521,2]
[387651548,1758798642637,-500.0,0.00020521,2]
[387651550,1758798642646,-160.0,0.00020627,3]
[387651552,1758798642656,-28567.35474008,0.00020627,3]
[387651554,1758798642666,-287.73340321,0.00020655,2]
[387651556,1758798642675,-348.02,0.00020711,3]
[387651559,1758798642686,-348.02,0.00020711,3]
[387651561,1758798642696,-480.0,0.00020718,2]
[387651562,1758798642706,-480.0,0.00020718,2]
[387651565,1758798642715,-480.0,0.00020718,2]
[387651567,1758798642724,-480.0,0.00020718,2]
[387651569,1758798642734,-245.0,0.00020719,2]
[387651571,1758798642743,-245.0,0.0002072,2]
[387651573,1758798642752,-480.0,0.0002072,2]
[387651574,1758798642762,-2874.04,0.0002072,2]
[387651577,1758798642771,-1101.9,0.0002072,2]
[387651579,1758798642782,-246.2,0.0002072,2]
[387651581,1758798642792,-672.35,0.00020721,2]
[387651583,1758798642806,-480.0,0.00020721,2]
[387651585,1758798642817,-480.0,0.00020721,2]
[387651587,1758798642826,-150.0,0.00020815,2]
[387651589,1758798642838,-500.35722853,0.00020883,2]
[387651591,1758798642847,-772.82291128,0.00020972,2]
[387651594,1758798642857,-480.0,0.00020992,2]
[387651597,1758798642867,-480.0,0.00020992,2]
[387651600,1758798642876,-480.0,0.00020992,2]
[387651602,1758798642886,-480.0,0.00020992,2]
[387651605,1758798642894,-480.0,0.00020994,2]
[387651608,1758798642904,-2874.04,0.00020994,2]
[387651611,1758798642913,-1101.9,0.00020994,2]
[387651614,1758798642923,-672.35,0.00020995,2]
[387651616,1758798642932,-480.0,0.00020995,2]
[387651618,1758798642941,-480.0,0.00020995,2]
[387651620,1758798642951,-300.0,0.00021081,2]
[387651622,1758798642961,-480.0,0.00021266,2]
[387651624,1758798642970,-480.0,0.00021266,2]
[387651626,1758798642981,-480.0,0.00021266,2]
[387651628,1758798642990,-480.0,0.00021266,2]
[387651630,1758798642999,-480.0,0.00021268,2]
[387651632,1758798643010,-2874.04,0.00021268,2]
[387651634,1758798643019,-1101.9,0.00021268,2]
[387651636,1758798643028,-672.35,0.00021269,2]
[387651638,1758798643037,-480.0,0.00021269,2]
[387651640,1758798643046,-480.0,0.00021269,2]
[387651641,1758798643055,-2362.96250629,0.00021353,2]
[387651643,1758798643064,-500.0,0.0002136,2]
[387651646,1758798643074,-500.0,0.0002136,2]
[387651648,1758798643083,-500.0,0.0002136,2]
[387651649,1758798643092,-500.0,0.0002136,2]
[387651651,1758798643102,-460.90661814,0.0002136,2]
[387651654,1758798643112,-1162.843611,0.00021473,2]
[387651656,1758798643121,-480.0,0.0002154,2]
[387651658,1758798643130,-480.0,0.0002154,2]
[387651660,1758798643139,-229.16377898,0.0002154,2]
[387651662,1758798643149,-480.0,0.0002154,2]
[387651664,1758798643158,-480.0,0.00021542,2]
[387651666,1758798643168,-2874.04,0.00021542,2]
[387651668,1758798643178,-1101.9,0.00021542,2]
[387651670,1758798643191,-672.35,0.00021543,2]
[387651672,1758798643201,-323.16,0.00021543,2]
[387651673,1758798643210,-480.0,0.00021543,2]
[387651674,1758798643220,-480.0,0.00021814,2]
[387651676,1758798643230,-480.0,0.00021814,2]
[387651678,1758798643239,-480.0,0.00021814,2]
[387651680,1758798643248,-372.00496605,0.00021816,2]
[387651682,1758798643259,-2874.04,0.00021816,2]
[387651684,1758798643268,-1101.9,0.00021816,2]
[387651686,1758798643277,-672.35,0.00021817,2]
[387651688,1758798643286,-480.0,0.00021817,2]
[387651690,1758798643296,-151.0,0.00021918,2]
[387651692,1758798643305,-259.4654811,0.00021947,2]
[387651694,1758798643315,-287.73340321,0.00022037,2]
[387651696,1758798643324,-772.82291128,0.00022044,2]
[387651698,1758798643334,-480.0,0.00022088,2]
[387651700,1758798643343,-480.0,0.00022088,2]
[387651702,1758798643353,-480.0,0.00022088,2]
[387651705,1758798643362,-2874.04,0.0002209,2]
[387651708,1758798643372,-1101.9,0.0002209,2]
[387651710,1758798643381,-672.35,0.00022091,2]
[387651712,1758798643390,-480.0,0.00022091,2]
[387651714,1758798643399,-774.67,0.000221,2]
[387651716,1758798643408,-1408.73101619,0.00022103,2]
[387651718,1758798643417,-160.0,0.00022104,2]
[387651720,1758798643426,-233.66602051,0.00022108,2]
[387651722,1758798643435,-417.15472785,0.00022108,2]
[387651724,1758798643445,-161.0,0.00022164,6]
[387651726,1758798643454,-199.43614688,0.00022192,2]
[387651727,1758798643463,-5311.3489735,0.00022226,2]